[Event "Asian Zonal 3.2 Women 2019"]
[Site "Dhaka"]
[Date "2019.03.20"]
[Round "6.9"]
[White "Parveen, Tanima"]
[Black "Sultana, Sharmin Shirin"]
[Result "0-1"]
[ECO "B22"]
[WhiteElo "1990"]
[BlackElo "1981"]
[Annotator "NA RC"]
[PlyCount "150"]
[EventDate "2019.03.14"]
[EventType "swiss"]
[EventCountry "BAN"]
[SourceTitle "playchess.com"]
[Source "ChessBase"]
[SourceQuality "1"]
[TimeControl "5400+30"]

{[%evp 20,138,24,8,14,14,15,-17,-8,-71,-16,-23,-18,-18,-10,-20,-8,0,0,32767,-13,-78,-85,-86,32767,-83,-66,-132,-120,-120,-97,-122,-90,-94,-75,-89,-80,32767,0,32767,-59,-87,-73,-114,-97,-105,-88,-105,-57,-81,-85,-75,0,-31,0,0,0,0,0,32767,32767,32767,32767,0,0,-24,32767,32767,32767,32767,32767,-60,-36,-55,-18,-104,-46,-39,-49,-85,-81,-87,-76,-75,-62,-78,-8,-8,-8,-31,0,-4,32767,32767,32767,-41,-33,32767,32767,32767,32767,-67,-30,-47,32767,32767,-70,-617,-882,-577,-530,32767,32767,-2292,-245,-543,-528,-567,-300,-282,-2006]} 1. e4 {[%emt 0:00:02]} c5 {[%emt 0:00:00]} 2. c3 {[%emt 0:00:06]} d5 {[%emt 0:00:04]} 3. exd5 {[%emt 0:00:08]} Qxd5 {[%emt 0:00:13]} 4. d4 {[%emt 0:00:12]} Nf6 {[%emt 0:00:42]} 5. Nf3 {[%emt 0:00:10]} e6 {[%emt 0:00:08]} 6. Be2 {[%emt 0:00:12]} Nc6 {[%emt 0:00:12]} 7. O-O {[%emt 0:00:13]} cxd4 {[%emt 0:00:43]} 8. Nxd4 {[%emt 0:02:22]} Nxd4 {[%emt 0:06:11]} 9. cxd4 {[%emt 0:00:30]} Be7 {[%emt 0:02:09]} 10. Nc3 {[%emt 0:01:22]} Qd6 {[%emt 0:08:52]} 11. Bf3 {[%emt 0:07:55] B22: Sicilian: 2 c3} O-O {[%emt 0:04:02]} 12. Be3 {[%emt 0:03:53]} (12. g3 Rd8 13. Be3 Qb6 14. Qb3 Qxb3 15. axb3 a6 16. Rfc1 Rb8 17. d5 exd5 18. Bb6 Re8 19. Bc7 Ra8 20. Nxd5 Nxd5 21. Bxd5 Bf6 22. Re1 Rxe1+ 23. Rxe1 {½-½ (23) Zvjaginsev,V (2658)-Bukavshin,I (2618) Moscow 2015}) 12... Bd7 {[%emt 0:05:33]} 13. Qb3 {[%emt 0:14:37]} Bc6 {[%emt 0:04:19]} 14. Nb5 $146 {[%emt 0:06:20]} (14. Bxc6 $11 {remains equal.} bxc6 15. Rac1) ({Predecessor:} 14. d5 Nxd5 15. Rfd1 Rfd8 16. Rd4 Qe5 17. Nxd5 exd5 18. Rad1 Bc5 19. R4d3 Bxe3 20. Rxe3 Qf6 21. Red3 d4 22. Bxc6 {½-½ (22) Volobuev,S (1829)-Solcanean,S (2168) Moscow 2008}) 14... Qd7 {[%emt 0:11:07]} ({Black should play} 14... Qb8 $17) 15. Bxc6 {[%emt 0:01:48]} bxc6 {[%emt 0:00:22]} 16. Nc3 {[%emt 0:06:40]} Rab8 {[%emt 0:03:16]} 17. Qc2 {[%emt 0:01:04]} Qc7 {[%emt 0:04:35]} 18. h3 {[%emt 0:02:48]} Qb7 {[%emt 0:05:44]} 19. Rab1 {[%emt 0:05:44]} Nd5 {[%emt 0:06:22]} 20. Rfc1 {[%emt 0:08:22]} (20. Ne4 $11 {keeps the balance.}) 20... Nxe3 {[%emt 0:04:45]} 21. fxe3 {[%emt 0:00:15]} c5 {[%emt 0:00:07]} 22. Rd1 {[%emt 0:09:09]} Rfd8 {[%emt 0:04:08]} 23. Ne4 {[%emt 0:05:20]} (23. dxc5 $15 Bxc5 24. Rxd8+ Rxd8 25. Qe2) 23... cxd4 {[%emt 0:03:15]} 24. exd4 {[%emt 0:02:40]} Qd5 {[%emt 0:05:12]} 25. Nc3 {[%emt 0:05:03]} Qg5 {[%emt 0:04:14]} 26. Kh1 {[%emt 0:02:48]} h6 {[%emt 0:00:37]} 27. Rd2 {[%emt 0:00:57]} Qf4 {[%emt 0:02:52]} 28. Ne2 {[%emt 0:01:22]} Qg5 {[%emt 0:01:09]} ({Black should try} 28... Qh4 $17) 29. Rbd1 {[%emt 0:01:10]} a5 {[%emt 0:03:30]} 30. a3 {[%emt 0:01:04]} Qb5 {[%emt 0:01:01]} 31. Qe4 {[%emt 0:04:39]} Bg5 {[%emt 0:01:22]} 32. Nc3 {[%emt 0:00:31]} Qc4 {[%emt 0:01:22]} 33. Rf2 {[%emt 0:01:55]} Rd7 {[%emt 0:01:03]} (33... f5 $17 34. Qe2 Qxe2 35. Rxe2 Bf6) 34. Qe5 {[%emt 0:03:06]} Rbd8 {[%emt 0:03:07]} 35. Qxa5 {[%emt 0:00:18]} Bh4 {[%emt 0:02:41]} ({Better is} 35... Rxd4 $17 36. Rxd4 Qxd4) 36. Rf4 {[%emt 0:01:24]} Bg3 {[%emt 0:01:13]} 37. Rf3 {[%emt 0:00:35]} Bc7 {[%emt 0:01:35]} 38. Qb5 {[%emt 0:00:09]} Rxd4 {[%emt 0:00:28]} 39. Qxc4 {[%emt 0:00:30]} Rxc4 {[%emt 0:00:01]} 40. Rxd8+ {[%emt 0:00:00]} Bxd8 {[%emt 0:00:00]} 41. b3 {[%emt 0:00:00]} Rd4 {[%emt 0:00:00]} 42. a4 {[%emt 0:00:00]} f5 {[%emt 0:00:00]} 43. Nb5 {[%emt 0:00:00]} Rd1+ {[%emt 0:00:00]} 44. Kh2 {[%emt 0:00:00]} Ba5 {[%emt 0:00:00]} 45. Rf2 {[%emt 0:00:00]} Rb1 {[%emt 0:00:00]} (45... Bb6 $17 46. Rf3 g5) 46. Rf3 {[%emt 0:00:00]} g5 {[%emt 0:00:00]} 47. Rd3 {[%emt 0:00:00]} ({White should try} 47. Na3 $15 Bc7+ 48. g3 Rb2+ 49. Kg1) 47... Be1 {[%emt 0:00:00]} (47... e5 $17 48. Na3 e4 49. Rd8+ Bxd8 50. Nxb1 Kf7) 48. g3 {[%emt 0:00:00]} Rb2+ {[%emt 0:00:00]} 49. Kh1 {[%emt 0:00:00]} f4 {[%emt 0:00:00]} 50. gxf4 {[%emt 0:00:00]} gxf4 {[%emt 0:00:00]} 51. Nd6 {[%emt 0:00:21]} Kg7 {[%emt 0:00:00]} 52. Nc4 {[%emt 0:02:00] [#]} Rb1 {[%emt 0:00:00]} ({Black should try} 52... Re2 $1 $17 53. Kg1 Bg3) 53. Kg2 {[%emt 0:00:12]} Kf6 {[%emt 0:00:00]} 54. a5 {[%emt 0:01:54]} Ra1 {[%emt 0:00:00]} 55. Kf3 {[%emt 0:00:16]} e5 {[%emt 0:01:38]} 56. Rd6+ {[%emt 0:01:32]} Kf5 {[%emt 0:00:16]} 57. Rd5 {[%emt 0:00:40]} Bc3 {[%emt 0:00:07]} 58. Rb5 {[%emt 0:01:02]} Rf1+ {[%emt 0:01:17]} 59. Kg2 {[%emt 0:00:08]} Ra1 {[%emt 0:00:35]} 60. Kf3 {[%emt 0:00:15]} Bd4 {[%emt 0:00:37]} 61. Nd6+ $1 {[%emt 0:00:48]} Ke6 {[%emt 0:00:12]} 62. Ne4 {[%emt 0:00:05] [#]} h5 $2 {[%emt 0:00:49]} ({Better is} 62... Re1 $1 $19 {[%cal Re1e3]} 63. Nd2 Re3+ 64. Kg4 Rg3+ 65. Kh4 Bf2) 63. b4 $2 {[%emt 0:01:11]} (63. Rb8 $15) 63... Ra3+ {[%emt 0:01:01]} 64. Kg2 {[%emt 0:00:30]} h4 {[%emt 0:00:09]} 65. Ng5+ {[%emt 0:01:30]} Kf5 {[%emt 0:00:04]} 66. Nf3 {[%emt 0:00:21]} Bc3 $2 {[%emt 0:02:05]} (66... Ra2+ 67. Kh1 Ke4 68. Nxd4 exd4) 67. Nxh4+ $2 {[%emt 0:01:35]} (67. a6 Rxa6 68. Rc5) 67... Ke4 {[%emt 0:00:03]} 68. Rc5 {[%emt 0:00:46]} Bd4 {[%emt 0:01:11]} (68... Ra2+ $142 69. Kh1 Kd3 70. Rd5+ Kc4 {[%mdl 64] Double Attack}) 69. Rc2 $19 {[%emt 0:00:29]} Rg3+ {[%emt 0:00:02]} 70. Kh2 {[%emt 0:00:19]} Rb3 {[%emt 0:01:52]} 71. Kg2 {[%emt 0:00:30]} Rxb4 {[%emt 0:00:20]} 72. Ra2 {[%emt 0:00:16]} Rb3 {[%emt 0:01:15]} 73. Nf3 {[%emt 0:00:10]} Rxf3 {[%emt 0:00:21]} 74. a6 {[%emt 0:00:23]} Rg3+ {[%emt 0:00:04]} 75. Kh2 {[%emt 0:00:02]} Rg7 {[%emt 0:00:23]} 0-1

[Event "Asian Zonal 3.2 Women 2019"]
[Site "Dhaka"]
[Date "2019.03.20"]
[Round "6.10"]
[White "Khan, Nazrana"]
[Black "Noshin, Anjum"]
[Result "0-1"]
[ECO "D49"]
[WhiteElo "1948"]
[BlackElo "1722"]
[Annotator "NA RC"]
[PlyCount "93"]
[EventDate "2019.03.14"]
[EventType "swiss"]
[EventCountry "BAN"]
[SourceTitle "playchess.com"]
[Source "ChessBase"]
[SourceQuality "1"]
[TimeControl "5400+30"]

{[%evp 29,93,-87,-93,-164,-150,-175,-171,-172,-158,-176,-181,-171,-82,-145,-107,-181,-127,-148,-144,-134,-128,-125,-127,-231,-229,-330,32767,-356,-384,-668,32767,-722,-577,-544,-568,-597,-603,-623,-627,-599,-672,-623,-640,-670,-695,-796,-787,-683,-719,-765,-1043,-878,-1295,-1726,-1830,-1188,-1120,-1827,-6087,-5022,-6721,-2347,-29973,-5787,-29977,-29982]} 1. d4 {[%emt 0:00:00]} d5 {[%emt 0:00:00]} 2. c4 {[%emt 0:00:00]} c6 {[%emt 0:00:00]} 3. Nf3 {[%emt 0:00:00]} Nf6 {[%emt 0:00:36]} 4. Nc3 {[%emt 0:00:00]} e6 {[%emt 0:00:16]} 5. e3 {[%emt 0:00:14]} Nbd7 {[%emt 0:00:10]} 6. Bd3 {[%emt 0:00:23]} dxc4 {[%emt 0:00:40]} 7. Bxc4 {[%emt 0:00:12]} b5 {[%emt 0:00:05]} 8. Bd3 {[%emt 0:00:08]} a6 {[%emt 0:00:07]} 9. e4 {[%emt 0:00:30]} c5 {[%emt 0:00:37]} 10. e5 {[%emt 0:00:27]} cxd4 {[%emt 0:00:33]} 11. Nxb5 {[%emt 0:01:10]} axb5 {[%emt 0:00:10]} 12. exf6 {[%emt 0:00:31]} gxf6 {[%emt 0:00:04]} 13. O-O {[%emt 0:01:21]} Qb6 {[%emt 0:02:26]} 14. Qe2 {[%emt 0:00:58]} Bb7 {[%emt 0:01:44] [#] D49: Semi-Slav: Meran System: Main line with 9 e4 c5 10 e5 cxd4 11 Nxb5} 15. Nd2 $146 {[%emt 0:10:29]} ({Predecessor:} 15. Bxb5 $14 Rg8 16. Bf4 Bd6 17. Bg3 f5 18. Rfc1 f4 19. Bh4 Be7 20. a4 Bxh4 21. Nxh4 Ke7 22. Ra3 {0-1 (35) Kramnik,V (2772)-Anand,V (2783) Bonn 2008}) 15... Rg8 {[%emt 0:05:30]} 16. Be4 {[%emt 0:02:44] [#]} (16. f3 $17 {keeps fighting.}) 16... f5 $1 {[%emt 0:05:25]} 17. Bf3 {[%emt 0:06:46]} Bd6 {[%emt 0:06:19]} 18. Bxb7 {[%emt 0:14:35]} Qxb7 {[%emt 0:00:15]} 19. Qf3 {[%emt 0:00:22]} Qxf3 {[%emt 0:20:21]} 20. Nxf3 {[%emt 0:01:26]} Rg4 {[%emt 0:21:01]} (20... e5 $19 {and Black stays clearly on top.} 21. Re1 Bb4) 21. Re1 {[%emt 0:20:48] [#]} Bc5 {[%emt 0:04:14]} ({Black should play} 21... e5 $1 $19 22. Bd2 Ke7) 22. Bd2 {[%emt 0:08:10]} (22. Kf1 $17 {keeps fighting.}) 22... Re4 {[%emt 0:01:44]} 23. a3 {[%emt 0:01:40]} Nf6 {[%emt 0:12:53]} 24. Rec1 {[%emt 0:04:08]} Bb6 {[%emt 0:00:45]} 25. Rc6 {[%emt 0:12:28]} Nd5 {[%emt 0:00:19]} 26. Re1 {[%emt 0:02:25] [#]} (26. Rd1 $17) 26... Kd7 $1 {[%emt 0:02:34]} 27. Rxe4 {[%emt 0:02:04]} (27. Rcc1 $142) 27... fxe4 {[%emt 0:00:22]} 28. Ne5+ {[%emt 0:00:32]} Ke8 {[%emt 0:03:11]} 29. Bb4 {[%emt 0:01:54]} (29. Ng4 $142 Bd8 30. g3) 29... Nxb4 {[%emt 0:01:57]} 30. Rxb6 {[%emt 0:00:41]} Rc8 {[%emt 0:00:07]} 31. g3 {[%emt 0:03:06]} d3 {[%emt 0:00:56]} 32. axb4 {[%emt 0:01:56]} d2 {[%emt 0:01:00]} 33. Rd6 {[%emt 0:00:59]} Rc1+ {[%emt 0:00:20]} 34. Kg2 {[%emt 0:00:05]} d1=Q {[%emt 0:00:16]} 35. Rxd1 {[%emt 0:01:11]} Rxd1 {[%emt 0:00:05]} 36. h4 {[%emt 0:01:03]} Rd2 {[%emt 0:00:26]} 37. Ng4 {[%emt 0:00:25]} Ke7 {[%emt 0:00:35]} 38. b3 {[%emt 0:00:27]} Rb2 {[%emt 0:00:08]} 39. Kf1 {[%emt 0:00:30]} Rxb3 {[%emt 0:00:17]} 40. Ne5 {[%emt 0:00:00]} f6 {[%emt 0:00:00]} 41. Ng4 {[%emt 0:00:00]} Rxb4 {[%emt 0:00:00]} 42. Ke2 {[%emt 0:00:00]} Rc4 {[%emt 0:00:00]} 43. Kd2 {[%emt 0:00:00]} b4 {[%emt 0:00:00]} 44. Ne3 {[%emt 0:00:00]} Rc8 $19 {[%emt 0:00:00]} (44... Rc5 $142 45. Nd1 b3 46. Ke3 Rc1 47. Ke2 Rc2+ 48. Ke1 b2 49. Nxb2 Rxb2 50. Kf1 Kd6 51. Kg1 Ke5 52. Kf1 f5 53. h5 f4 54. gxf4+ Kxf4 55. Ke1 Kf3 56. Kd1 Rxf2 57. Ke1 e3 58. Kd1 Rd2+ 59. Kc1 h6 60. Kb1 e2 61. Kc1 e1=Q#) 45. Nd1 {[%emt 0:00:00]} b3 {[%emt 0:00:00]} 46. Ke3 {[%emt 0:00:00]} Rc2 {[%emt 0:00:00]} 47. Kd4 {[%emt 0:06:42]} 0-1

[Event "Asian Zonal 3.2 Women 2019"]
[Site "Dhaka"]
[Date "2019.03.20"]
[Round "6.11"]
[White "Kiswara, Shajrin Evana"]
[Black "Parveen, Seyda Shabana"]
[Result "0-1"]
[ECO "A26"]
[WhiteElo "1615"]
[BlackElo "2073"]
[Annotator "NA RC"]
[PlyCount "106"]
[EventDate "2019.03.14"]
[EventType "swiss"]
[EventCountry "BAN"]
[SourceTitle "playchess.com"]
[Source "ChessBase"]
[SourceQuality "1"]
[TimeControl "5400+30"]

{[%evp 19,106,-12,-7,-34,-29,-43,-32,-38,0,-6,0,32767,15,5,28,18,48,30,27,31,43,28,43,34,35,25,46,0,35,10,17,20,32767,0,0,-71,-82,-83,-83,-73,-92,32767,32767,-97,-104,-93,-99,-183,-127,-191,-163,-191,-195,-216,-235,-183,-220,-233,-200,-154,0,-189,32767,-218,-125,32767,-143,-278,-243,-229,-216,-339,-202,-267,-187,-279,-278,-283,-271,-713,-761,-720,-796,-843,-758,-1159,-1275,-2804,-579]} 1. c4 {[%emt 0:00:00]} Nf6 {[%emt 0:00:00]} 2. g3 {[%emt 0:00:05]} g6 {[%emt 0:00:07]} 3. Bg2 {[%emt 0:00:18]} Bg7 {[%emt 0:00:12]} 4. Nc3 {[%emt 0:00:31]} d6 {[%emt 0:00:39]} 5. Nf3 {[%emt 0:07:05]} O-O {[%emt 0:01:13]} 6. O-O {[%emt 0:00:39]} e5 {[%emt 0:01:09]} 7. d3 {[%emt 0:00:34]} Nc6 {[%emt 0:01:52]} 8. a3 {[%emt 0:01:20]} a5 {[%emt 0:03:51]} 9. Bg5 {[%emt 0:01:34]} h6 {[%emt 0:01:03]} 10. Bxf6 {[%emt 0:01:15]} Bxf6 {[%emt 0:00:16]} 11. Nd5 {[%emt 0:00:46]} Bg7 {[%emt 0:01:03]} 12. Rb1 {[%emt 0:01:04]} Be6 {[%emt 0:02:47] A26: English Opening vs King's Indian with ...Nc6 and d3} 13. Nd2 {[%emt 0:01:33]} Rb8 {[%emt 0:06:10]} (13... h5 14. b4 axb4 15. axb4 Bh6 16. Nb3 Bxd5 17. Bxd5 Nxb4 18. Bxb7 Ra2 19. Ra1 Rb2 20. Bf3 c5 {0-1 (30) Chuprikov,D (2377)-Novikov,S (2545) Voronezh 2006}) 14. b4 {[%emt 0:02:28]} axb4 {[%emt 0:00:59]} 15. axb4 {[%emt 0:01:11]} Qd7 {[%emt 0:05:11]} 16. e3 $146 {[%emt 0:03:42]} ({Predecessor:} 16. b5 Ne7 17. Nxe7+ Qxe7 18. Ra1 Qd7 19. Ra7 Bh3 20. Bxh3 Qxh3 21. e3 Qf5 {1-0 (59) Meyer,H (2256)-Hundack,R (2229) Germany 2014}) 16... Bf5 {[%emt 0:09:18]} 17. Ne4 {[%emt 0:02:10]} Bxe4 {[%emt 0:04:01]} 18. Bxe4 {[%emt 0:02:34]} f5 {[%emt 0:00:26]} 19. Bg2 {[%emt 0:01:31]} Nd8 {[%emt 0:00:22]} 20. b5 {[%emt 0:01:22]} Ne6 {[%emt 0:00:42]} 21. Nb4 {[%emt 0:01:53]} Kh8 {[%emt 0:02:33]} 22. Bd5 {[%emt 0:02:45]} Ng5 {[%emt 0:01:12]} 23. Bg2 {[%emt 0:03:57]} (23. h4 $5 {[%cal Rh4g5]} Nh7 24. Qd2 $11) 23... f4 {[%emt 0:06:21]} 24. h4 {[%emt 0:11:33]} Nh7 {[%emt 0:04:03]} 25. Kh2 {[%emt 0:02:17]} g5 {[%emt 0:04:22]} 26. Bh3 {[%emt 0:02:35]} Qf7 {[%emt 0:00:38]} 27. Qg4 {[%emt 0:04:58] [#]} (27. hxg5 $11 Nxg5 28. Bg4) 27... h5 $1 {[%emt 0:05:40]} 28. Qe6 {[%emt 0:01:32]} g4 {[%emt 0:00:38]} 29. Qxf7 {[%emt 0:05:57]} Rxf7 {[%emt 0:00:03]} 30. Bg2 {[%emt 0:00:16]} f3 {[%emt 0:00:12]} 31. Bh1 {[%emt 0:01:07]} Nf8 {[%emt 0:00:59]} 32. Nd5 {[%emt 0:01:28]} Ne6 {[%emt 0:00:09]} 33. e4 {[%emt 0:03:55]} (33. Ra1 $17 {might work better.}) 33... Ra8 {[%emt 0:06:10]} 34. Ra1 {[%emt 0:01:00]} Rxa1 {[%emt 0:06:41]} 35. Rxa1 {[%emt 0:00:15]} Nc5 {[%emt 0:00:12]} 36. Ra8+ {[%emt 0:03:54]} Kh7 {[%emt 0:00:28]} 37. Nb4 {[%emt 0:00:21]} Bh6 {[%emt 0:02:04]} 38. Ra2 $1 $11 {[%emt 0:03:01]} Nb3 {[%emt 0:01:50]} 39. Kg1 {[%emt 0:06:05]} Nc5 $2 {[%emt 0:03:23]} (39... Nc1 $19 40. Rc2 {[#]} c6 $1 {[%mdl 512]}) 40. Kf1 $2 {[%emt 0:00:00]} Kg6 {[%emt 0:00:00]} 41. Ke1 {[%emt 0:00:00] [#]} Nb3 {[%emt 0:00:00]} (41... c6 $1 $19 {[%mdl 512]} 42. Kd1 (42. bxc6 bxc6) 42... cxb5 43. cxb5 Rc7) 42. Kd1 {[%emt 0:00:00]} Rf8 {[%emt 0:00:00]} 43. Nc2 {[%emt 0:00:00]} (43. Ra7 $17 {was called for.}) 43... Nc1 {[%emt 0:00:00]} 44. Ra3 {[%emt 0:00:00]} Ne2 {[%emt 0:00:00]} 45. Ra1 {[%emt 0:00:00]} (45. Ra7 {was worth a try.}) 45... Kf6 {[%emt 0:07:40]} 46. Ke1 {[%emt 0:00:00]} Ke6 {[%emt 0:00:35]} 47. Bg2 {[%emt 0:03:56]} (47. Nb4 {might work better.}) 47... Nxg3 {[%emt 0:03:49]} 48. Bf1 {[%emt 0:04:40]} Nh1 {[%emt 0:00:11]} 49. d4 $2 {[%emt 0:01:47]} (49. Nb4) 49... g3 {[%emt 0:00:17]} 50. Bh3+ {[%emt 0:00:36]} Ke7 {[%emt 0:00:51]} 51. fxg3 {[%emt 0:02:05]} f2+ {[%emt 0:00:26]} 52. Ke2 {[%emt 0:02:29]} Nxg3+ {[%emt 0:00:13] Double Attack} 53. Kd3 $19 {[%emt 0:00:20]} Rf3+ {[%emt 0:00:29]} 0-1

[Event "Asian Zonal 3.2 Women 2019"]
[Site "Dhaka"]
[Date "2019.03.20"]
[Round "6.12"]
[White "Hamid, Rani"]
[Black "Jannatul, Ferdous"]
[Result "1/2-1/2"]
[ECO "C78"]
[WhiteElo "1941"]
[BlackElo "1704"]
[Annotator "NA RC"]
[PlyCount "149"]
[EventDate "2019.03.14"]
[EventType "swiss"]
[EventCountry "BAN"]
[SourceTitle "playchess.com"]
[Source "ChessBase"]
[SourceQuality "1"]
[TimeControl "5400+30"]

{[%evp 25,149,-18,-11,-16,-8,-28,-7,-28,0,0,0,0,0,0,0,14,141,143,143,44,154,129,135,34,40,0,0,-4,22,-20,32767,-97,6,-31,32767,-37,0,-18,0,0,0,0,0,32767,-13,-22,0,0,0,-8,0,-6,0,0,0,0,20,11,32767,12,14,0,0,0,0,0,0,0,0,0,0,0,50,0,0,8,32767,0,113,0,0,0,0,0,0,0,0,0,0,0,0,0,0,-7,0,-1363,-3727,-939,0,0,0,0,0,0,0,0,0,-29976,-29977,-29977,-29983,-29985,-29984,-29986,32767,0,0,-2,0,0,0,0,0,0,0,0]} 1. e4 {[%emt 1:30:30]} e5 {[%emt 0:00:00]} 2. Nf3 {[%emt 0:00:00]} Nc6 {[%emt 0:00:00]} 3. Bb5 {[%emt 0:00:00]} a6 {[%emt 0:00:00]} 4. Ba4 {[%emt 0:00:00]} Nf6 {[%emt 0:00:00]} 5. O-O {[%emt 0:00:00]} b5 {[%emt 0:00:00]} 6. Bb3 {[%emt 0:00:00]} Bc5 {[%emt 0:00:00]} 7. c3 {[%emt 0:00:00]} d6 {[%emt 0:00:03]} 8. h3 {[%emt 0:00:00]} O-O {[%emt 0:00:20]} 9. d4 {[%emt 0:00:00]} Bb6 {[%emt 0:00:02]} 10. Be3 {[%emt 0:00:00] C78: Ruy Lopez: Archangelsk and Möller Defences} exd4 {[%emt 0:01:48]} 11. cxd4 {[%emt 0:00:00]} Nxe4 {[%emt 0:07:02]} 12. Bd5 {[%emt 0:00:00]} Qe8 {[%emt 0:00:02]} 13. Qc2 {[%emt 0:00:00] Double Attack} Nb4 {[%emt 0:00:02]} 14. Qxe4 {[%emt 0:00:00]} Qxe4 {[%emt 0:00:11]} 15. Bxe4 {[%emt 0:00:00]} d5 {[%emt 0:00:03]} 16. Bxh7+ {[%emt 0:00:00]} Kxh7 {[%emt 0:00:09]} 17. Nc3 {[%emt 0:00:00] [#]} Nc2 $146 {[%emt 0:05:54]} 18. Rac1 {[%emt 0:00:00]} Nxe3 {[%emt 0:00:02]} 19. fxe3 {[%emt 0:09:00]} Be6 {[%emt 1:23:52]} 20. Ne2 {[%emt 0:00:00]} Rac8 {[%emt 0:00:00] [#]} (20... f6 $11) 21. Nf4 $1 {[%emt 0:00:00]} Kg8 {[%emt 0:00:00]} 22. Ne5 {[%emt 0:00:00]} (22. Nxe6 $16 fxe6 23. Rc6) 22... Rcd8 {[%emt 0:00:00]} (22... Rfe8 $14) 23. Nc6 {[%emt 0:00:00]} Rd6 {[%emt 0:00:00]} 24. Rf3 {[%emt 0:00:00]} (24. Ne7+ $16 Kh7 25. Nxe6 {[%mdl 64] Overworked Piece} Rxe6 26. Nxd5) 24... Re8 {[%emt 0:00:00]} 25. b4 {[%emt 0:00:00]} Bd7 {[%emt 0:00:00]} 26. Ne5 {[%emt 0:00:00]} f6 {[%emt 0:00:00]} 27. Ned3 {[%emt 0:00:00]} Bf5 {[%emt 0:00:00]} 28. Nf2 {[%emt 0:00:00]} (28. Nc5 $11) 28... Be4 {[%emt 0:00:00]} ({Better is} 28... a5 $17) 29. Rg3 {[%emt 0:00:00]} Kf7 {[%emt 0:00:00]} 30. h4 {[%emt 0:00:00]} a5 {[%emt 0:00:00]} 31. a3 {[%emt 0:00:00]} axb4 {[%emt 0:00:00]} 32. axb4 {[%emt 0:00:00]} Ra8 {[%emt 0:00:00]} 33. Nh5 {[%emt 0:00:00]} g6 {[%emt 0:00:00]} 34. Nf4 {[%emt 0:00:00]} Bf5 {[%emt 0:00:00]} 35. Rf3 {[%emt 0:00:00]} Be4 {[%emt 0:00:00]} 36. Nxe4 {[%emt 0:00:00]} dxe4 {[%emt 0:00:00]} 37. Rff1 {[%emt 0:00:00]} Ra3 {[%emt 0:00:00]} 38. Rfe1 {[%emt 0:00:00]} Rb3 {[%emt 0:00:00]} 39. Rb1 {[%emt 0:00:00]} Rc3 {[%emt 0:00:00]} 40. Re2 {[%emt 0:00:00]} Rdc6 {[%emt 0:00:00]} 41. Nd5 {[%emt 0:00:00]} Rc1+ {[%emt 0:00:00]} 42. Rxc1 {[%emt 0:00:00]} Rxc1+ {[%emt 0:00:00]} 43. Kf2 {[%emt 0:00:00]} Ke6 {[%emt 0:00:00]} 44. Nxb6 {[%emt 0:00:00]} cxb6 {[%emt 0:00:00]} 45. Ra2 {[%emt 0:00:00]} Rb1 {[%emt 0:00:00]} 46. Ra6 {[%emt 0:00:00]} Rxb4 {[%emt 0:00:00]} 47. Rxb6+ {[%emt 0:00:00]} Kf7 {[%emt 0:00:00]} 48. g4 {[%emt 0:00:00]} Rb1 {[%emt 0:00:00]} 49. h5 {[%emt 0:00:00]} gxh5 {[%emt 0:00:00]} 50. gxh5 {[%emt 0:00:00]} b4 {[%emt 0:00:00]} 51. Rb7+ {[%emt 0:00:00]} (51. Kg3 $1 $14) 51... Kg8 {[%emt 0:00:00]} (51... Ke6 $11 {remains equal.}) 52. Rb6 {[%emt 0:00:00]} (52. Kg3 $14) 52... b3 {[%emt 0:00:00]} 53. Kg2 {[%emt 0:00:00]} ({But not} 53. Rxf6 $2 b2 $19) 53... b2 {[%emt 0:00:00]} 54. Rb7 {[%emt 0:00:00]} Re1 {[%emt 0:00:00]} 55. Rxb2 {[%emt 0:00:00]} Rxe3 {[%emt 0:00:00]} 56. Rb7 {[%emt 0:00:00]} f5 {[%emt 0:00:00]} 57. Rd7 {[%emt 0:00:00]} f4 {[%emt 0:00:00]} 58. d5 {[%emt 0:00:00]} f3+ {[%emt 0:00:00]} 59. Kg3 {[%emt 0:00:00]} Re2 {[%emt 0:00:00]} 60. d6 $2 {[%emt 0:00:00]} (60. Rd8+ $15 Kg7 61. h6+ Kxh6 62. d6 Rg2+ 63. Kh3) 60... Rg2+ {[%emt 0:00:00]} 61. Kh3 {[%emt 0:00:00] [#]} Rg5 $2 {[%emt 0:00:00]} (61... Rg1 $1 $19 62. Rd8+ Kf7) 62. h6 {[%emt 0:00:00]} Rh5+ {[%emt 0:07:37]} (62... e3 $5 63. Rg7+ $8 Rxg7 64. hxg7 e2 $11) 63. Kg3 {[%emt 0:00:00]} Rg5+ {[%emt 0:05:58]} 64. Kh4 {[%emt 0:00:00]} Rf5 {[%emt 0:04:10]} 65. h7+ {[%emt 0:00:00]} Kh8 {[%emt 0:00:15]} 66. Re7 $2 {[%emt 0:00:00]} (66. Rd8+ $11 Kxh7 67. d7) 66... f2 {[%emt 0:01:32]} 67. d7 {[%emt 0:00:00]} Rd5 {[%emt 0:00:52]} 68. Rf7 {[%emt 0:00:00]} e3 {[%emt 0:00:15]} 69. Kg3 {[%emt 0:00:00]} Rd1 {[%emt 0:02:24]} 70. Kg2 {[%emt 0:00:00]} e2 {[%emt 0:00:52] [#]} 71. d8=Q+ $1 {[%emt 0:00:00]} Rxd8 {[%emt 0:00:46]} 72. Kxf2 {[%emt 0:00:00]} Re8 {[%emt 0:00:59]} 73. Ke1 {[%emt 0:00:00]} Re6 {[%emt 0:00:13]} 74. Rc7 {[%emt 0:00:00]} Re8 {[%emt 0:00:21]} 75. Ra7 $11 {[%emt 0:00:00]} 1/2-1/2